bitfinex-derivatives/quotes_SOLF0:USTF0_20250731
["timestamp","ask_amount","ask_price","bid_price","bid_amount"]
[1754003645201,3.35,173.63,173.57,3.06]
[1754003645701,9.1101,173.63,173.58,5.7614]
[1754003645995,3.35,173.6,173.56,3.06]
[1754003646301,3.35,173.58,173.56,3.06]
[1754003646501,3.35,173.57,173.56,3.06]
[1754003646804,3.35,173.57,173.5,5.35856493]
[1754003647005,3.35,173.56,173.55,3.06]
[1754003647198,5.7617,173.58,173.55,3.06]
[1754003647199,3.35,173.6,173.55,3.06]
[1754003647500,5.7614,173.59,173.55,3.06]
[1754003647700,3.35,173.57,173.55,3.06]
[1754003648801,5.7614,173.59,173.55,3.06]
[1754003649004,3.35,173.56,173.55,3.06]
[1754003649303,3.35,173.57,173.56,3.06]
[1754003650207,3.35,173.54,173.46,3.06]
[1754003650406,3.35,173.54,173.48,3.06]
[1754003650709,3.35,173.52,173.5,3.06]
[1754003651004,3.35,173.51,173.5,3.06]
[1754003652403,9.1134,173.53,173.5,3.06]
[1754003652606,3.35,173.52,173.51,3.06]
[1754003653113,3.35,173.54,173.44,5.35856493]
[1754003653409,5.35856493,173.57,173.46,5.35856493]
[1754003653609,3.35,173.56,173.47,3.06]
[1754003655214,5.7625,173.55,173.5,5.7642]
[1754003655408,3.35,173.54,173.51,3.06]
[1754003656204,3.35,173.54,173.5,5.7642]
[1754003656205,5.35856493,173.55,173.5,3.06]
[1754003656414,3.35,173.5,173.45,3.06]
[1754003656710,3.35,173.46,173.42,3.06]
[1754003656910,3.35,173.45,173.42,3.06]
[1754003657214,3.35,173.44,173.38,3.06]
[1754003658317,9.1162,173.44,173.38,5.7679]
[1754003658522,3.35,173.43,173.4,3.06]
[1754003658722,5.7662,173.44,173.38,5.7679]
[1754003658723,3.35,173.42,173.41,3.06]
[1754003659527,3.35,173.42,173.37,109.7]
[1754003659829,3.35,173.43,173.38,3.06]
[1754003660023,11.12496493,173.44,173.39,3.06]
[1754003660231,3.35,173.44,173.39,3.06]
[1754003660622,5.7661,173.45,173.39,8.8276]
[1754003660822,3.35,173.43,173.4,3.06]
[1754003661024,3.35,173.43,173.42,3.06]
[1754003661421,11.12416493,173.46,173.4,5.7673]
[1754003661735,3.35,173.47,173.41,3.06]
[1754003662027,3.35,173.47,173.42,5.7666]
[1754003662226,3.35,173.47,173.43,3.06]
[1754003663125,3.35,173.46,173.43,3.06]
[1754003663323,3.35,173.46,173.43,5.7663]
[1754003663520,3.35,173.46,173.4,5.35856493]
[1754003663728,3.35,173.46,173.45,3.06]
[1754003664425,3.35,173.54,173.44,3.06]
[1754003664727,3.35,173.57,173.5,3.06]
[1754003664925,5.35856493,173.59,173.51,3.06]
[1754003664926,3.35,173.54,173.51,3.06]
[1754003665129,3.35,173.53,173.52,3.06]
[1754003665329,3.35,173.52,173.5,3.06]
[1754003665633,3.35,173.56,173.48,3.06]
[1754003665925,5.35856493,173.53,173.44,5.35856493]
[1754003666132,3.35,173.5,173.47,3.06]
[1754003666327,3.35,173.5,173.45,3.06]
[1754003666528,9.1145,173.5,173.46,3.06]
[1754003666829,3.35,173.48,173.46,3.06]
[1754003667230,5.7645,173.5,173.44,5.35856493]
[1754003667231,3.35,173.5,173.44,5.35856493]
[1754003667432,3.35,173.55,173.49,3.06]
[1754003668024,9.1126,173.55,173.49,3.06]
[1754003668333,3.26,173.53,173.49,3.06]
[1754003668529,3.26,173.52,173.49,3.06]
[1754003668731,5.35856493,173.57,173.5,3.19]
[1754003668931,3.26,173.52,173.46,3.19]
[1754003669329,5.7641,173.51,173.42,11.12506493]
[1754003669530,3.26,173.49,173.47,3.19]
[1754003669727,3.26,173.49,173.48,3.19]
[1754003669928,3.26,173.5,173.49,3.19]
[1754003671028,9.0242,173.5,173.44,5.35856493]
[1754003671332,3.26,173.49,173.45,3.19]
[1754003671521,3.26,173.48,173.46,3.19]
[1754003671723,3.26,173.48,173.43,3.19]
[1754003671929,3.26,173.47,173.43,3.19]
[1754003672927,3.26,173.46,173.41,3.19]
[1754003673131,3.26,173.45,173.41,3.19]
[1754003673833,3.26,173.47,173.41,3.19]
[1754003674026,3.26,173.49,173.43,3.19]
[1754003674227,3.26,173.49,173.44,5.35856493]
[1754003674432,3.26,173.51,173.45,3.19]
[1754003676339,3.26,173.53,173.47,3.19]
[1754003676838,9.0233,173.53,173.47,3.19]
[1754003678835,5.7636,173.52,173.47,3.19]
[1754003679033,3.26,173.51,173.47,3.19]
[1754003679834,3.26,173.56,173.47,3.19]
[1754003680034,4.08792582,173.55,173.47,3.19]
[1754003680236,7.34792582,173.54,173.47,3.19]
[1754003680436,7.34792582,173.53,173.47,3.19]
[1754003680633,7.34792582,173.52,173.47,3.19]
[1754003680828,3.26,173.52,173.47,3.19]
[1754003681435,4.10505723,173.51,173.47,3.19]
[1754003681634,3.26,173.52,173.47,3.19]
[1754003681833,4.10487017,173.51,173.48,5.7648]
[1754003682028,3.26,173.52,173.48,5.7648]
[1754003682233,3.26,173.52,173.5,3.19]
[1754003682541,4.11338647,173.51,173.5,3.19]
[1754003683832,7.37338647,173.51,173.5,3.19]
[1754003684535,3.26,173.5,173.49,3.19]
[1754003684737,7.37338647,173.5,173.49,3.19]
[1754003688643,3.26,173.49,173.48,3.19]
[1754003688837,7.37338647,173.49,173.48,3.19]
[1754003689039,3.26,173.48,173.47,3.19]
[1754003689733,9.0248,173.48,173.47,3.19]
[1754003689934,3.26,173.47,173.45,3.19]
[1754003690138,3.26,173.47,173.44,3.19]
[1754003690335,3.61868374,173.5,173.44,3.19]
[1754003690336,5.7651,173.48,173.44,3.19]
[1754003690533,3.26,173.46,173.45,3.19]
[1754003696341,3.26,173.47,173.44,5.7661]
[1754003696647,3.26,173.47,173.43,3.61868374]
[1754003696836,3.26,173.52,173.46,3.19]
[1754003697040,3.26,173.52,173.49,3.19]
[1754003697442,3.26,173.51,173.48,3.61868374]
[1754003697646,3.26,173.51,173.48,3.19]
[1754003697841,3.26,173.5,173.49,3.19]
[1754003698144,3.26,173.53,173.46,3.19]
[1754003698345,3.13,173.51,173.47,3.19]
[1754003698543,5.7641,173.51,173.46,9.38398374]
[1754003698744,3.13,173.49,173.48,3.19]
[1754003699445,3.13,173.5,173.47,3.19]
[1754003700151,5.7641,173.51,173.47,3.19]
[1754003700444,3.61868374,173.54,173.47,3.19]
[1754003700645,3.13,173.48,173.47,3.19]
[1754003700850,3.13,173.5,173.47,3.19]
[1754003701145,3.13,173.49,173.48,3.19]
[1754003702053,5.7641,173.51,173.48,3.19]
[1754003702243,3.13,173.5,173.49,3.19]
[1754003703648,3.61868374,173.55,173.46,3.61868374]
[1754003703851,6.74868374,173.49,173.44,3.19]
[1754003704047,3.13,173.48,173.41,3.61868374]
[1754003704354,3.13,173.47,173.46,3.19]
[1754003705552,3.13,173.47,173.42,3.19]
[1754003705752,5.7662,173.44,173.42,3.19]
[1754003705951,3.13,173.43,173.42,3.19]
[1754003706452,3.13,173.45,173.42,3.19]
[1754003706847,3.13,173.45,173.43,3.19]
[1754003707051,3.13,173.44,173.39,3.61868374]
[1754003707447,3.13,173.44,173.42,5.7667]
[1754003707651,3.13,173.45,173.44,3.19]
[1754003709951,8.8958,173.45,173.44,3.19]
[1754003710153,3.13,173.45,173.42,3.19]
[1754003710352,3.13,173.42,173.38,3.19]
[1754003711251,3.61868374,173.41,173.36,3.19]
[1754003711446,3.13,173.46,173.36,3.19]
[1754003711646,3.61868374,173.42,173.36,3.19]
[1754003711846,3.13,173.41,173.35,1.00366279]
[1754003712052,3.13,173.4,173.37,3.19]
[1754003712253,3.13,173.38,173.37,3.19]
[1754003712654,8.8982,173.38,173.37,3.19]
[1754003713351,8.8986,173.37,173.36,3.19]
[1754003713554,3.13,173.36,173.31,3.19]
[1754003713746,3.13,173.33,173.32,3.19]
[1754003714351,3.13,173.38,173.32,3.19]
[1754003714551,3.13,173.38,173.34,3.19]
[1754003714850,3.13,173.38,173.32,3.19]
[1754003715055,3.61868374,173.37,173.3,197.83081616]
[1754003715252,3.13,173.36,173.33,3.19]
[1754003715959,3.13,173.36,173.32,3.19]
[1754003716350,3.13,173.35,173.34,3.19]
[1754003716758,3.13,173.37,173.35,3.19]
[1754003716955,3.61868374,173.39,173.35,3.19]
[1754003716956,3.13,173.36,173.35,3.19]
[1754003717154,3.61868374,173.43,173.35,3.19]
[1754003717358,3.13,173.39,173.35,3.19]
[1754003717657,3.13,173.4,173.37,3.19]
[1754003718160,4.83300781,173.48,173.4,3.19]
[1754003718161,3.13,173.45,173.4,3.19]
[1754003718357,3.13,173.45,173.38,3.61868374]
[1754003718659,3.13,173.43,173.42,3.19]
[1754003719463,3.13,173.42,173.39,3.19]
[1754003719756,3.13,173.42,173.36,3.61868374]
[1754003720060,3.61868374,173.44,173.39,3.19]
[1754003720256,3.61868374,173.46,173.38,3.61868374]
[1754003720455,3.13,173.44,173.39,3.19]
[1754003720658,5.7667,173.43,173.4,3.19]
[1754003720856,3.13,173.42,173.4,3.19]
[1754003721360,3.13,173.42,173.41,3.19]
[1754003723573,3.13,173.41,173.39,8.9577]
[1754003723759,3.13,173.41,173.4,3.19]
[1754003724956,3.13,173.41,173.38,5.768]
[1754003725159,5.7677,173.4,173.36,3.19]
[1754003725364,5.7677,173.4,173.37,3.19]
[1754003725564,3.13,173.39,173.37,3.19]
[1754003725870,3.13,173.39,173.38,3.19]
[1754003726167,3.13,173.39,173.36,3.19]
[1754003726668,3.13,173.37,173.36,3.19]
[1754003727265,3.13,173.36,173.34,3.19]
[1754003727568,3.13,173.35,173.34,3.19]
[1754003729368,8.8992,173.35,173.34,3.19]
[1754003729574,3.13,173.35,173.32,3.03]
[1754003729866,3.61868374,173.38,173.3,4.62286784]
[1754003729867,8.9198,173.34,173.33,3.03]
[1754003730666,8.9199,173.33,173.31,3.03]
[1754003730865,8.9199,173.33,173.32,3.03]
[1754003731367,3.15,173.33,173.32,3.03]
[1754003731767,3.15,173.37,173.32,3.03]
[1754003731959,3.15,173.42,173.33,3.61868374]
[1754003732164,17.89650981,173.48,173.34,3.03]
[1754003732165,3.15,173.4,173.34,3.03]
[1754003732559,5.7687,173.37,173.34,3.03]
[1754003732860,3.15,173.36,173.35,3.03]
[1754003733360,3.15,173.4,173.34,3.03]
[1754003733766,3.15,173.4,173.34,8.7994]
[1754003733965,3.15,173.4,173.33,3.61868374]
[1754003734263,5.7681,173.39,173.37,3.03]
[1754003734666,3.15,173.39,173.38,3.03]
[1754003735062,5.7685,173.38,173.35,5.769]
[1754003735268,3.15,173.4,173.36,3.03]
[1754003735467,3.15,173.4,173.3,1.0041841]
[1754003735468,3.61868374,173.39,173.34,3.03]
[1754003735668,3.15,173.38,173.34,3.03]
[1754003736472,5.7692,173.35,173.34,3.03]
[1754003736772,3.15,173.34,173.33,3.03]
[1754003737071,8.9197,173.34,173.33,3.03]
[1754003737570,3.15,173.34,173.33,3.03]
[1754003738170,3.15,173.33,173.32,3.03]
[1754003738470,3.15,173.34,173.33,3.03]
[1754003738872,3.61868374,173.35,173.31,3.03]
[1754003739062,3.15,173.34,173.29,3.03]
[1754003739267,3.15,173.32,173.29,3.03]
[1754003739673,3.15,173.3,173.24,3.03]
[1754003740162,8.9221,173.27,173.24,5.7726]
[1754003740363,8.9221,173.27,173.26,3.03]
[1754003741364,5.7728,173.24,173.23,1.00454644]
[1754003741570,3.61868374,173.34,173.22,125.45033339]
[1754003741571,3.15,173.26,173.22,125.45033339]
[1754003741774,3.61868374,173.29,173.22,125.45033339]
[1754003741967,3.15,173.26,173.22,125.45033339]
[1754003742268,3.61868374,173.27,173.22,125.45033339]
[1754003742473,5.7739,173.21,173.2,3.03]
[1754003742669,3.15,173.2,173.18,3.03]
[1754003742864,3.15,173.2,173.16,3.61868374]
[1754003743069,4.82614782,173.32,173.19,3.03]
[1754003743265,3.15,173.24,173.2,3.03]
[1754003743672,3.15,173.24,173.15,107.80496708]
[1754003743875,3.15,173.22,173.16,3.03]
[1754003744871,3.15,173.24,173.17,3.03]
[1754003746177,3.15,173.24,173.15,6.38515005]
[1754003746178,3.15,173.21,173.19,3.03]
[1754003746373,3.15,173.24,173.19,3.03]
[1754003746978,3.15,173.22,173.16,3.03]
[1754003747177,3.15,173.24,173.18,3.03]
[1754003747475,3.15,173.24,173.15,1.00496708]
[1754003747476,3.15,173.24,173.22,3.03]
[1754003747675,3.15,173.3,173.22,3.03]
[1754003748278,3.15,173.3,173.23,3.03]
[1754003748677,5.7721,173.27,173.23,5.7729]
[1754003748870,5.38018297,173.31,173.24,3.03]
[1754003748871,3.15,173.26,173.24,3.03]
[1754003749074,3.15,173.26,173.25,3.03]
[1754003749278,3.15,173.3,173.23,3.03]
[1754003749979,3.15,173.28,173.21,3.03]
[1754003750478,3.15,173.23,173.22,3.03]
[1754003751280,8.9232,173.23,173.22,3.03]
[1754003751481,3.15,173.21,173.2,3.03]
[1754003752279,3.15,173.23,173.22,3.03]
[1754003752487,5.7729,173.24,173.22,3.03]
[1754003752784,8.9229,173.24,173.23,3.03]
[1754003753286,3.15,173.3,173.23,3.03]
[1754003753685,5.7715,173.28,173.24,5.7726]
[1754003753880,3.15,173.3,173.25,3.03]
[1754003754185,3.15,173.29,173.25,3.03]
[1754003754479,5.38018297,173.33,173.26,3.03]
[1754003754782,3.15,173.28,173.21,3.03]
[1754003755082,3.15,173.26,173.2,5.7739]
[1754003755282,3.15,173.25,173.17,5.38018297]
[1754003755474,3.15,173.25,173.22,3.03]
[1754003755680,5.38018297,173.27,173.22,3.03]
[1754003756183,5.38018297,173.27,173.21,3.03]
[1754003756386,3.15,173.25,173.21,8.8036]
[1754003756579,3.15,173.25,173.21,5.7736]
[1754003756783,3.15,173.25,173.24,3.03]
[1754003757181,3.15,173.25,173.2,5.774]
[1754003757384,5.38018297,173.27,173.2,5.774]
[1754003757574,5.38018297,173.27,173.21,3.03]
[1754003757775,8.9228,173.25,173.21,8.8037]
[1754003758180,3.15,173.27,173.22,3.03]
[1754003758488,3.22,173.3,173.23,3.2]
[1754003758883,5.7724,173.26,173.23,3.2]
[1754003759082,3.22,173.26,173.23,3.2]
[1754003759284,3.22,173.28,173.19,3.2]
[1754003759483,3.22,173.26,173.21,3.2]
[1754003759786,3.22,173.25,173.21,3.2]
[1754003760286,3.22,173.25,173.22,3.2]
[1754003760483,16.36534782,173.34,173.22,3.2]
[1754003760484,3.22,173.28,173.22,5.38018297]
[1754003760686,3.22,173.3,173.25,3.2]
[1754003760880,3.22,173.29,173.25,3.2]
[1754003761386,5.7717,173.28,173.26,3.2]
[1754003761687,3.22,173.31,173.26,3.2]
[1754003761991,3.22,173.34,173.27,3.2]
[1754003762284,3.22,173.32,173.27,3.2]
[1754003762485,5.7706,173.31,173.29,3.2]
[1754003762989,5.7706,173.31,173.3,3.2]
[1754003763385,8.9906,173.31,173.3,3.2]
[1754003763986,8.9903,173.32,173.31,3.2]
[1754003764991,5.7713,173.29,173.28,3.2]
[1754003765191,8.9913,173.29,173.28,3.2]
[1754003765388,5.7713,173.29,173.28,3.2]
[1754003766290,8.9913,173.29,173.28,3.2]
[1754003766589,5.7717,173.28,173.25,5.38018297]
[1754003766789,8.9917,173.28,173.25,3.62780883]
[1754003766984,3.62780883,173.33,173.26,3.2]
[1754003767179,8.9913,173.29,173.26,3.2]
[1754003767690,3.22,173.34,173.28,3.2]
[1754003768288,5.7708,173.31,173.28,3.2]
[1754003768688,3.22,173.31,173.28,3.2]
[1754003768886,5.7711,173.3,173.29,3.2]
[1754003769089,8.9911,173.3,173.29,3.2]
[1754003769787,5.7713,173.29,173.27,3.62780883]
[1754003769982,8.9913,173.29,173.27,3.62780883]
[1754003770187,3.22,173.28,173.27,3.2]
[1754003771589,8.9915,173.28,173.27,3.2]
[1754003772090,3.22,173.28,173.27,3.2]
[1754003772987,3.22,173.28,173.25,9.40010883]
[1754003773192,3.22,173.28,173.25,12.60010883]
[1754003773387,5.7713,173.29,173.25,12.60010883]
[1754003773595,3.22,173.27,173.26,3.2]
[1754003773892,3.22,173.27,173.24,3.2]
[1754003774090,5.7722,173.26,173.24,3.2]
[1754003774288,3.22,173.25,173.24,3.2]
[1754003774790,8.9922,173.26,173.25,3.2]
[1754003775494,3.22,173.26,173.25,3.2]
[1754003775996,3.22,173.3,173.24,3.2]
[1754003776588,3.62780883,173.31,173.24,3.2]
[1754003776589,5.7722,173.26,173.24,3.2]
[1754003777185,8.9922,173.26,173.25,3.2]
[1754003779090,3.22,173.26,173.25,3.2]
[1754003779698,8.992,173.27,173.26,3.2]
[1754003780192,3.22,173.24,173.21,3.62780883]
[1754003780395,3.22,173.23,173.22,3.2]
[1754003782098,8.9932,173.23,173.22,3.2]
[1754003783101,3.22,173.21,173.2,3.2]
[1754003783798,3.22,173.21,173.18,3.2]
[1754003783997,3.22,173.2,173.17,3.2]
[1754003784394,3.62780883,173.23,173.15,24.95719556]
[1754003784597,3.62780883,173.23,173.16,3.2]
[1754003784598,7.48521828,173.22,173.16,3.2]
[1754003784798,5.7747,173.19,173.17,3.2]
[1754003785001,3.22,173.18,173.17,3.2]
[1754003785496,8.9948,173.18,173.17,3.2]
[1754003786099,3.22,173.18,173.17,3.2]
[1754003786600,8.9948,173.18,173.17,3.2]
[1754003786795,3.62780883,173.21,173.16,3.2]
[1754003786994,3.22,173.2,173.16,3.2]
[1754003787195,3.22,173.19,173.16,3.2]
[1754003787598,3.22,173.19,173.17,3.2]
[1754003787803,3.22,173.19,173.16,5.7753]
[1754003787999,3.22,173.19,173.18,3.2]
[1754003788595,8.9945,173.19,173.18,3.2]
[1754003788796,3.22,173.19,173.16,3.1]
[1754003789200,5.7748,173.18,173.16,3.1]
[1754003789401,3.1,173.17,173.16,3.1]
[1754003790801,3.1,173.21,173.16,3.1]
[1754003791196,3.62780883,173.23,173.16,3.1]
[1754003791403,8.8742,173.2,173.18,3.1]
[1754003791701,3.62780883,173.23,173.17,3.1]
[1754003791900,3.62780883,173.21,173.15,1.00496708]
[1754003792096,3.1,173.2,173.16,3.1]
[1754003792696,3.1,173.17,173.16,3.1]
[1754003793004,3.1,173.19,173.16,3.1]
[1754003793204,3.1,173.18,173.17,3.1]
[1754003793403,3.1,173.19,173.17,3.1]
[1754003793803,3.1,173.19,173.18,3.1]
[1754003794001,8.8745,173.19,173.18,3.1]
[1754003794209,3.1,173.19,173.18,3.1]
[1754003794403,5.7742,173.2,173.18,3.1]
[1754003794604,3.1,173.19,173.18,3.1]
[1754003795308,3.1,173.19,173.16,3.1]
[1754003796004,5.7752,173.17,173.16,3.1]
[1754003796205,8.8752,173.17,173.16,3.1]
[1754003796704,3.1,173.15,173.13,129.24606196]
[1754003796909,3.1,173.14,173.13,132.34606196]
[1754003797901,3.1,173.14,173.11,106.86]
[1754003798210,3.1,173.16,173.11,3.1]
[1754003798411,3.62780883,173.13,173.08,3.1]
[1754003798609,3.1,173.12,173.09,3.1]
[1754003798908,3.1,173.12,173.07,3.1]
[1754003799107,3.62780883,173.13,173.07,3.1]
[1754003799108,3.1,173.11,173.07,3.1]
[1754003799501,3.1,173.12,173.07,5.7785]
[1754003799703,3.1,173.12,173.06,1.00543164]
[1754003799704,3.1,173.12,173.09,3.1]
[1754003799911,5.7775,173.1,173.09,3.1]
[1754003800110,8.8775,173.1,173.09,3.1]
[1754003800506,3.62780883,173.11,173.07,3.1]
[1754003800702,3.1,173.1,173.07,3.1]
[1754003801311,8.8782,173.08,173.07,3.1]
[1754003802213,3.62780883,173.09,173.04,3.1]
[1754003802402,3.1,173.08,173.04,3.1]
[1754003802610,8.8792,173.05,173.04,3.1]
[1754003803216,3.1,173.04,173.02,3.1]
[1754003803411,3.1,173.03,173.02,3.1]
[1754003803907,5.7793,173.05,173.03,3.1]
[1754003804112,3.1,173.07,173.02,3.1]
[1754003804309,3.62780883,173.16,173.03,3.62780883]
[1754003804505,3.1,173.1,173.06,3.1]
[1754003804710,3.1,173.09,173.05,3.1]
[1754003804904,3.62780883,173.12,173.06,3.1]
[1754003805114,3.1,173.07,173.06,3.1]
[1754003807316,3.62780883,173.08,173.03,3.1]
[1754003807511,3.1,173.07,173.03,3.1]
[1754003808414,3.62780883,173.08,173.02,5.7801]
[1754003808615,3.1,173.06,173.05,3.1]
[1754003808814,3.1,173.05,173.04,3.1]
[1754003809016,8.8792,173.05,173.04,3.1]
[1754003809610,3.1,173.04,173.01,1.00578035]
[1754003809810,3.1,173.04,172.99,3.1]
[1754003810212,8.8805,173.01,172.99,3.1]
[1754003810616,8.8805,173.01,173.0,3.1]
[1754003811011,5.7803,173.02,172.99,3.1]
[1754003811215,3.1,173.01,173.0,3.1]
[1754003811619,8.8805,173.01,173.0,3.1]
[1754003813730,3.1,173.01,172.97,3.1]
[1754003814028,3.1,173.03,172.97,3.1]
[1754003814533,3.1,173.01,172.96,106.94]
[1754003815034,8.8818,172.97,172.96,106.94]
[1754003815235,3.1,172.97,172.96,3.1]
[1754003815527,3.1,172.97,172.93,3.1]
[1754003815734,3.1,172.99,172.93,3.1]
[1754003816134,3.1,172.99,172.92,107.96633296]
[1754003816329,3.1,172.99,172.95,3.1]
[1754003817034,5.782,172.97,172.92,107.96633296]
[1754003817229,8.882,172.97,172.96,3.1]
[1754003818529,3.25,172.96,172.93,3.06]
[1754003818732,3.25,172.98,172.93,3.06]
[1754003818934,3.25,172.97,172.93,3.06]
[1754003819130,3.25,172.97,172.94,5.7828]
[1754003819332,3.25,172.97,172.96,3.06]
[1754003819832,9.0319,172.97,172.96,3.06]
[1754003821032,3.25,172.97,172.96,3.06]
[1754003821240,3.25,173.01,172.96,3.06]
[1754003821439,3.25,173.01,172.92,107.96633296]
[1754003821440,3.25,173.01,172.98,3.06]
[1754003821642,9.0307,173.01,172.98,3.06]
[1754003822033,3.25,173.0,172.98,3.06]
[1754003822339,3.25,173.0,172.95,3.62780883]
[1754003822340,3.25,172.98,172.97,3.06]
[1754003822938,5.7814,172.99,172.95,3.62780883]
[1754003823141,9.031,173.0,172.99,3.06]
[1754003823636,3.25,173.07,172.99,3.06]
[1754003823835,3.25,173.07,173.0,3.06]
[1754003824236,3.25,173.03,173.01,3.06]
[1754003824441,3.62780883,173.08,172.92,107.96633296]
[1754003824442,3.25,173.06,173.03,3.06]
[1754003824633,9.0284,173.08,173.05,3.06]
[1754003824834,3.25,173.11,173.05,3.06]
[1754003825231,3.25,173.07,173.01,3.06]
[1754003826032,3.62780883,173.06,172.98,3.62780883]
[1754003826342,3.25,173.04,173.0,3.62780883]
[1754003826532,3.25,173.04,173.01,3.06]
[1754003826732,5.7792,173.05,173.03,3.06]
[1754003826930,3.25,173.05,173.01,3.06]
[1754003827135,3.62780883,173.08,173.02,3.06]
[1754003827341,3.62780883,173.08,173.01,5.7804]
[1754003827342,3.25,173.04,173.03,3.06]
[1754003827638,3.62780883,173.08,173.02,5.7802]
[1754003827839,3.25,173.05,173.04,3.06]
[1754003828442,9.0294,173.05,173.04,3.06]
[1754003828840,3.62780883,173.1,173.03,5.7797]
[1754003829134,3.62780883,173.12,173.05,3.06]
[1754003829343,3.25,173.08,173.05,3.06]
[1754003829539,3.25,173.1,173.07,3.06]
[1754003830242,3.25,173.14,173.09,3.06]
[1754003830442,106.98,173.17,173.08,3.62780883]
[1754003830643,3.25,173.15,173.09,3.06]
[1754003830840,3.25,173.13,173.09,3.06]
[1754003831040,3.25,173.12,173.1,3.06]
[1754003831441,3.25,173.11,173.03,3.06]
[1754003832039,3.25,173.11,173.05,3.06]
[1754003832845,3.25,173.11,173.07,3.06]
[1754003833046,3.25,173.11,173.03,3.06]
[1754003833447,9.0277,173.1,173.07,3.06]
[1754003834044,9.0277,173.1,173.06,5.7788]
[1754003834247,3.25,173.1,173.09,3.06]
[1754003834449,6.87780883,173.1,173.03,3.06]
[1754003834743,3.25,173.09,173.03,3.06]
[1754003834943,3.25,173.08,173.06,3.06]
[1754003835650,5.7781,173.09,173.02,3.62780883]
[1754003835651,3.25,173.09,173.02,3.62780883]
[1754003835844,3.25,173.09,173.03,3.06]
[1754003836448,3.25,173.09,173.04,3.62780883]
[1754003836743,3.25,173.1,173.09,3.06]
[1754003836947,3.25,173.11,173.1,3.06]
[1754003837543,5.7771,173.12,173.07,5.7783]
[1754003837743,3.25,173.1,173.09,3.06]
[1754003841855,3.25,173.1,173.05,3.06]
[1754003842053,3.62780883,173.14,173.05,3.06]
[1754003842054,3.25,173.09,173.05,3.06]
[1754003842756,3.25,173.09,173.07,5.7785]
[1754003842948,3.25,173.09,173.08,3.06]
[1754003844154,3.25,173.09,173.02,3.62780883]
[1754003844457,3.25,173.09,173.04,3.06]
[1754003844754,3.25,173.09,173.03,3.06]
[1754003845750,3.25,173.09,173.05,3.06]